Cogmind - Beta 10.2 *** ADVENTURER MODE // 2022.02.18 @ 00:20:35 Player: woegarden Result: Destroyed by G-34 Mercenary with Small Laser Performance ------------- Evolutions (1) 500 Regions Visited (2) 400 Robots Destroyed (25) 125 Value Destroyed (709) 709 Prototype IDs (4) 80 Alien Tech Used (0) 0 Bonus (0) 0 TOTAL SCORE: 1814 Bonus ------- None Cogmind --------- Core Integrity 0/400 Matter 21/300 Energy 100/100 System Corruption 4% Temperature Cool (6) Movement Core (150) Ox2 Location -9/Materials Parts ------- > --- POWER (1) -------- (None) > --- PROPULSION (2) --- (None) > --- UTILITY (4) ------ Medium Storage Unit Visual Processing Unit > --- WEAPON (2) ------- (None) > --- INVENTORY (8) ---- Flight Unit Flight Unit Small Storage Unit Medium Storage Unit Medium Storage Unit High-capacity Matter Pod (0) Visual Processing Unit Signal Interpreter Peak State ------------ > --- POWER ------------ Light Nuclear Core > --- PROPULSION ------- Aluminum Leg Aluminum Leg > --- UTILITY ---------- Medium Storage Unit ECM Suite > --- WEAPON ----------- Assault Rifle Light Assault Rifle > --- INVENTORY -------- Flight Unit Flight Unit Small Storage Unit Medium Storage Unit Medium Storage Unit High-capacity Matter Pod Visual Processing Unit Signal Interpreter [Rating: 9] Favorites ----------- Power Light Nuclear Core Engine Ion Engine Power Core Light Nuclear Core Propulsion Aluminum Leg Leg Aluminum Leg Utility Medium Storage Unit Device ECM Suite Storage Medium Storage Unit Processor Visual Processing Unit Weapon Light Assault Rifle Ballistic Gun Light Assault Rifle Launcher Grenade Launcher Build | -11 -10 -9 ------- Run | Scr Mat Mat Slots Evolved 2 | . . 2 Power . | . . . Propulsion . | . . . Utility 2 | . . 2 Weapon . | . . . Parts Attached 13 | 2 10 1 Power 2 | . 2 . Engine 1 | . 1 . Core 1 | . 1 . Reactor . | . . . Propulsion 4 | 2 2 . Treads . | . . . Leg 4 | 2 2 . Wheel . | . . . Hover . | . . . Flight . | . . . Utility 4 | . 3 1 Device 1 | . 1 . Storage 2 | . 2 . Processor 1 | . . 1 Hackware . | . . . Protection . | . . . Artifact . | . . . Weapon 3 | . 3 . Energy Gun . | . . . Energy Cannon . | . . . Ballistic Gun 2 | . 2 . Ballistic Cannon . | . . . Launcher 1 | . 1 . Special Weapon . | . . . Impact Weapon . | . . . Slashing Weapon . | . . . Piercing Weapon . | . . . Special Melee Weapon . | . . . Unidentified Prototypes . | . . . Parts Lost 7 | . 2 5 Power 1 | . . 1 Propulsion 2 | . . 2 Utility 1 | . . 1 Weapon 3 | . 2 1 Highest Loss Streak 3 | . 1 3 Average Slot Usage (%) 71 | . 86 29 Engine 4 | . 5 . Core 6 | . 8 . Leg 20 | . 28 . Device 5 | . 5 7 Storage 13 | . 14 11 Processor 1 | . . 4 Ballistic Gun 15 | . 21 . Launcher 3 | . 2 5 Naked Turns . | . . . Heaviest Build 18 | . 18 17 Greatest Support 20 | 20 20 20 Greatest Overweight (x) 5 | . . 5 Average Overweight (x) . | . . 2 Largest Inventory Capacity 8 | 4 8 8 Average Capacity 7 | 4 7 8 Most Carried 8 | 4 8 8 Average Carried 5 | 2 5 8 Final Capacity 8 | 4 8 8 Final Carried 8 | 4 8 8 Class Distribution -------------------- 100% | Mutant Dominant Class ---------------- Mutant | -10/Materials Mutant | -9/Materials Resources | -11 -10 -9 ----------- Run | Scr Mat Mat Matter Collected 346 | 150 196 . Remotely . | . . . Salvage Created 746 | . 667 79 Parts 39 | . 36 3 Haulers Intercepted 2 | . 2 . Recyclers Shooed . | . . . Parts Field Recycled . | . . . Retrieved Matter . | . . . Parts Self-Destructed . | . . . Prevented . | . . . Kills | -11 -10 -9 ------- Run | Scr Mat Mat Combat Hostiles Destroyed 17 | . 16 1 Guns 8 | . 8 . AOE 9 | . 8 1 Classes Destroyed 7 | . 4 3 Tunneler 1 | . 1 . Hauler 2 | . 2 . Recycler 1 | . . 1 Operator 1 | . . 1 Watcher 3 | . 2 1 Grunt 16 | . 16 . Sentry 1 | . . 1 Best Kill Streak 8 | . 8 2 Combat Bots Only 8 | . 8 1 Max Kills in Single Turn 2 | . 2 1 Gunslinging . | . . . Exploded 2 | . 2 1 Melee . | . . . Uniques/NPCs Destroyed . | . . . Combat | -11 -10 -9 -------- Run | Scr Mat Mat Damage Taken 1187 | . 622 565 Core 521 | . 117 404 Absorbed by Shields . | . . . Core Remaining (%) 76 | 100 53 . Volleys Fired 68 | . 58 10 Largest 2 | . 2 1 Hottest 50 | . 50 30 Shots Fired 103 | . 93 10 Gun 84 | . 84 . Cannon . | . . . Launcher 19 | . 9 10 Special . | . . . Kinetic 84 | . 84 . Thermal . | . . . Explosive 19 | . 9 10 Electromagnetic . | . . . Robot Hit Streak 52 | . 52 11 Robot Miss Streak 1 | . 1 . Penetration Max . | . . . Secondary Targets 1 | . 1 . Max Gunslinging Chain 1 | . 1 . Shots Hit Robots 85 | . 77 8 Core Hits 55 | . 45 10 Critical Hits . | . . . Critical Kills . | . . . Critical Parts Destroyed . | . . . Melee Attacks . | . . . Impact . | . . . Slashing . | . . . Piercing . | . . . Sneak Attacks . | . . . Combat Hostiles . | . . . Follow-up Attacks . | . . . Damage Inflicted 1741 | . 1379 362 Guns 690 | . 690 . Cannons . | . . . Explosions 1043 | . 689 354 Melee . | . . . Ramming 8 | . . 8 Kinetic 690 | . 690 . Thermal . | . . . Explosive 1043 | . 689 354 Electromagnetic . | . . . Impact . | . . . Slashing . | . . . Piercing . | . . . Highest Corruption 4 | . . 4 Average Corruption 4 | . . 4 Corruption Purged . | . . . Overload Shots . | . . . Overflow Damage 38 | . 16 22 Projectiles . | . . . Explosions 38 | . 16 22 Melee . | . . . Knockbacks 1 | . . 1 Impact 1 | . . 1 Kinetic . | . . . Secondary . | . . . Self-Inflicted Damage 131 | . 56 75 Shots 7 | . 3 4 Rammed 3 | . . 3 Targets Rammed 3 | . . 3 Kicked . | . . . Crushed . | . . . Highest Temperature 20 | . 20 . Average Temperature 7 | . 7 . Received Heat Transfer 741 | . 426 315 Siege Activations . | . . . Robots Corrupted . | . . . Combat Hostiles . | . . . Parts Fried . | . . . Impact Corruptions . | . . . Robots Melted . | . . . Combat Hostiles . | . . . Parts Melted . | . . . Heat Transferred . | . . . Parts Sabotaged . | . . . Parts Stolen . | . . . Parts Stripped . | . . . Power Chain Reactions . | . . . Missiles Intercepted . | . . . Alert | -11 -10 -9 ------- Run | Scr Mat Mat Peak Influence 275 | . 275 105 Initial 93 | . . 93 Average 121 | . 144 98 Maximum Alert Level 1 | . 1 . Low Security (%) 77 | 100 66 100 Level 1 22 | . 33 . Level 2 . | . . . Level 3 . | . . . Level 4 . | . . . Level 5 . | . . . High Security . | . . . Max Security . | . . . Squads Dispatched 3 | . 2 1 Investigation 2 | . 2 . Extermination . | . . . Reinforcement 1 | . . 1 Assault . | . . . Garrison . | . . . Intercept . | . . . Construction Impeded . | . . . Haulers Reinforced . | . . . Stealth | -11 -10 -9 --------- Run | Scr Mat Mat Distress Signals 2 | . 1 1 Communications Jammed . | . . . Distress Signals . | . . . Times Spotted 33 | . 22 11 Peak Tracking Total 6 | . 4 6 Tactical Retreats 1 | . 1 . Traps | -11 -10 -9 ------- Run | Scr Mat Mat Traps Triggered 1 | . 1 . Indirectly . | . . . Trap Hack Attempts . | . . . Triggered . | . . . Disarmed . | . . . Reprogrammed . | . . . Reused . | . . . Traps Extracted . | . . . Installed . | . . . Triggered . | . . . Machines | -11 -10 -9 ---------- Run | Scr Mat Mat Machines Disabled . | . . . Max in Single Turn . | . . . Machines Sabotaged . | . . . Garrisons Compromised . | . . . Overloaded Fab Kills . | . . . Fab Network Shutdowns . | . . . Hacking | -11 -10 -9 --------- Run | Scr Mat Mat Machines Accessed 3 | . 3 . Terminals 3 | . 3 . Fabricators . | . . . Repair Stations . | . . . Recycling Units . | . . . Scanalyzers . | . . . Garrison Access . | . . . Total Hacks 9 | . 9 . Successful 6 | . 6 . Failed 3 | . 3 . Catastrophic . | . . . Database Lockouts . | . . . Manual . | . . . Terminals 9 | . 9 . Fabricators . | . . . Repair Stations . | . . . Recycling Units . | . . . Scanalyzers . | . . . Garrison Access . | . . . Terminal Hacks 6 | . 6 . Record 2 | . 2 . Prototype ID Bank 2 | . 2 . Branch Access Points 1 | . 1 . Registered Prototypes 1 | . 1 . Fabricator Hacks . | . . . Repair Station Hacks . | . . . Recycling Unit Hacks . | . . . Scanalyzer . | . . . Garrison Access Hacks . | . . . Unauthorized Hacks . | . . . Terminals . | . . . Fabricators . | . . . Repair Stations . | . . . Recycling Units . | . . . Scanalyzers . | . . . Garrison Access . | . . . Data Cores Recovered . | . . . Used . | . . . Hacking Detections 2 | . 2 . Full Trace Events 2 | . 2 . Feedback Events . | . . . Feedback Blocked . | . . . Robot Schematics Acquired . | . . . Robots Built . | . . . Matter . | . . . Time . | . . . Total Robot Build Rating . | . . . Part Schematics Acquired . | . . . Parts Built . | . . . Matter . | . . . Time . | . . . Total Part Build Rating . | . . . Parts Repaired . | . . . Time . | . . . Parts Recycled . | . . . Recycled Matter . | . . . Retrieved Matter . | . . . Retrieved Components . | . . . Parts Scanalyzed . | . . . Part Schematics Acquired . | . . . Parts Damaged . | . . . Bothacking | -11 -10 -9 ------------ Run | Scr Mat Mat Used RIF Installer . | . . . Robots Hacked . | . . . Non-combat . | . . . Combat . | . . . Robot Hacks Applied . | . . . Relay Couplers Released . | . . . Robots Rewired . | . . . Allies Hacked . | . . . Hacks Repelled . | . . . Allies | -11 -10 -9 -------- Run | Scr Mat Mat Total Allies . | . . . Largest Group . | . . . Highest-Rated Group . | . . . Highest-Rated Ally . | . . . Total Orders . | . . . Ally Attacks . | . . . Total Damage . | . . . Kills . | . . . Allies Corrupted . | . . . Allies Melted . | . . . Intel | -11 -10 -9 ------- Run | Scr Mat Mat Robot Analysis Total . | . . . Derelict Logs Recovered . | . . . Drone Launches . | . . . Drone Recoveries . | . . . Exploration | -11 -10 -9 ------------- Run | Scr Mat Mat Turns Passed 695 | 59 462 174 Spaces Moved 361 | 48 223 90 Core 91 | 11 . 80 Treads . | . . . Legs 270 | 37 223 10 Wheels . | . . . Hover . | . . . Flight . | . . . Fastest Speed 50 | 50 120 120 Average Speed 129 | 103 120 165 Slowest Speed 300 | 120 120 300 Overloaded Moves . | . . . Propulsion Burnouts . | . . . Robots Hopped . | . . . Cave-ins Triggered . | . . . Exploration Rate (%) 24 | 3 57 13 Regions Visited 2 Branch Regions . Pre-discovered Areas . | . . . Known Exits Taken . | . . . Unknown Exits Taken 2 | 1 1 . Scrap Searched . | . . . Spaces Dug . | . . . Terrain Destroyed 109 | . 54 55 Melee . | . . . Projectile . | . . . AOE 109 | . 54 55 Terrain Rammed . | . . . Walls Destroyed . | . . . Machines Disabled . | . . . Actions | -11 -10 -9 --------- Run | Scr Mat Mat Total 494 | 57 333 104 Wait 29 | . 29 . Move 359 | 47 222 90 Hop . | . . . Pick Up 18 | 7 11 . Fast Attach 3 | . 2 1 Attach 6 | 2 4 . Detach . | . . . Swap 4 | . 4 . Drop 4 | 1 3 . Fire 68 | . 58 10 Melee . | . . . Ram 3 | . . 3 Kick . | . . . Crush . | . . . Escape Stasis . | . . . Rewire . | . . . Trap . | . . . Miscellaneous . | . . . Route ------- -11/Scrapyard -10/Materials (discovered 2 exits: [*Mat] / Min) -9/Materials History --------- Turn | Location | Event 5 | -11/Scrapyard | Discovered new exit (range 14) 60 | -11/Scrapyard | Entered Materials 314 | -10/Materials | Build established: Mutant 490 | -10/Materials | Discovered new exit (range 13) 492 | -10/Materials | Identified exit to Mines 522 | -10/Materials | Entered another Materials area 522 | -9/Materials | Evolved 2 slots: Utility x2 523 | -9/Materials | Destroyed 8 combat bots 570 | -9/Materials | Lost 3 parts (1p2n) 646 | -9/Materials | Core integrity fell below 50% 689 | -9/Materials | Core integrity fell below 20% 696 | -9/Materials | Destroyed by G-34 Mercenary with Small Laser Last Messages --------------- 00635_ G-34 Mercenary knocked back. 00636_ U-05 Engineer lays Concrete. 00637_ Slammed into G-34 Mercenary. 00638_ The unstable cave ceiling collapses. 00638_ U-05 Engineer builds a Wall. 00638_ U-05 Engineer lays Concrete. 00642_ K-01 Serf collects debris. 00642_ U-05 Engineer lays Concrete. 00642_ U-05 Engineer builds a Wall. 00643_ U-05 Engineer lays Concrete. 00645_ K-01 Serf collects debris. 00646_ U-05 Engineer lays Concrete. 00647_ U-05 Engineer builds a Wall. 00648_ U-05 Engineer lays Concrete. 00649_ K-01 Serf collects debris. 00650_ U-05 Engineer lays Concrete. 00657_ U-05 Engineer builds a Wall. 00664_ T-07 Excavator is excavating. 00687_ U-05 Engineer lays Concrete. 00690_ T-07 Excavator is excavating. Map ----- +----------------------------------------------------+ | ?????????????????????????????????????????????????? | | ?????????????????????????????????????????????????? | | ?????????????????????????????????????????????????? | | ?????????????????????????????????????????????????? | | ?????????????????????????????????????????????????? | | ?????????????????????????????????????????????????? | | ?????????????????????????????????????????????????? | | ?????????????????????????????????????????????????? | | ?????????????????????????????????????????????????? | | ?????????????????????????? ??????????????????????? | | ?????????????????????????? ??????????????????????? | | ?????????????????????????? #?????????????????????? | | ?????????????????????????? #?????????????????????? | | ?????#???????????????????? #?????????????????????? | | ?????? ??????????????????? #?????????????????????? | | ?????? #?????????????????? #?????????????????????? | | ???????/???????????###???? #?????????????????????? | | ???????# ?????????? w##### ########??????????????? | | ???????# ??????????# T k ???????????????? | | ???????# ?????????# ???????????????? | | ???????# ?????????# a ???????????????? | | ???????# ????????# w a ???????????????? | | ????# # ######### """ """ ""???????????????? | | ????# g """ """ """??????????????? | | ?????# # g """ """ """ ????????? | | ???????# u g @ ??????? | | ???????# g u ??????? | | ???????########### #???????? | | ?????????????????# ###########+## #???????? | | ?????????????????#m #?????????????????##???????? | | ?????????????????# #??????????????????????????? | | ?????????????????# #??????????????????????????? | | ?????????????????# #??????????????????????????? | | ????????????????## ##?????????????????????????? | | ????????????????# ##?????????????????????????? | | ????????????????# ###????????????????????????? | | ???????????####### % T#????????????????????????? | | ???????????# # ""#????????????????????????? | | ???????????# #####??????????????????????? | | ???????????# # ## ####????????????????????? | | ???????????# # # ##???????????????????? | | ???????????# # ##??????????????????? | | ???????????#!! / #??????????????????? | | ???????????#!! # ##??????????????????? | | ???????????#!! # # ## # #??????????????????? | | ???????????# #+### #??????????????????? | | ???????????# # #??????????????????? | | ???????????# # # ##??????????????????? | | ???????????# # % ##??????????????????? | | ???????????####### #??????????????????? | +----------------------------------------------------+ Best States ------------- Heat Dissipation 28 Energy Generation 14 Energy Capacity 250 Matter Stores 230 Matter Capacity 300 Sight Range 18 Terrain Scan Density 10 ECM Strength 1 Resistance: KI 20 Resistance: TH 20 Resistance: EX 20 Resistance: EM 20 Resistance: I 20 Resistance: S 20 Resistance: P 20 Evasion (%) 50 Offensive Hacking 10 Item Schematics ----------------- None Robot Schematics ------------------ None Fabricated ------------ Nothing Alien Tech Used ----------------- None Achievements -------------- Let's See Who's Tougher Challenges ------------ None Game ------ Seed ReactiveActuatorCleaver Manual? 0 Play Time 00:09:49 Cumulative 9.6 hours Start 2022.02.18 @ 00:12:10 End 2022.02.18 @ 00:20:35 Sessions 1 Manual Loads 0 Difficulty Adventurer Special Mode None Game No. 16 Rogue 0 Adventurer 16 Explorer 0 Win Type - Total 0 Types 0/0/0/0/0/0/0/0/0 Lore% 15 Gallery% 13 Achievement% 12 Wizard Run 0 Options --------- ASCII 0 Keyboard 0 Movement Mouse Keybinds 0 Fullscreen 1 Font 16/Proggy Map View 76x50 Tactical HUD 1 Map Filters NONE Filters NONE Steam 1 RUN: 00c66fe1-2b37-4b18-9186-9745eedd8333